bitfinex-derivatives/quotes_ETHF0:USTF0_20250624
["timestamp","ask_amount","ask_price","bid_price","bid_amount"]
[1750776851859,0.82279,2429.5,2429.4,0.82277]
[1750776852365,7.92376,2429.6,2429.5,0.82277]
[1750776852563,0.82276,2429.6,2429.5,0.82277]
[1750776852966,11.13153,2429.7,2429.6,0.82274]
[1750776853454,10.3088,2429.7,2429.6,0.82274]
[1750776853656,11.13151,2429.7,2429.6,0.82274]
[1750776853962,7.101,2429.7,2429.6,0.82274]
[1750776854160,7.7608,2429.9,2429.8,0.82267]
[1750776854356,7.101,2430.2,2429.7,2.05677]
[1750776854563,5.41903,2430.3,2430.2,0.82254]
[1750776854863,0.82241,2430.7,2430.6,0.82239]
[1750776855063,1.52551,2430.7,2430.6,0.82239]
[1750776855361,1.52547,2430.7,2430.6,0.82239]
[1750776855758,1.52548,2430.7,2430.3,3.2078]
[1750776855970,1.52548,2430.7,2430.6,0.8224]
[1750776856660,0.82246,2430.5,2430.4,0.82244]
[1750776856853,3.2078,2430.5,2429.9,3.2078]
[1750776857049,7.101,2430.4,2430.3,0.82247]
[1750776858361,7.101,2430.4,2429.9,5.26439]
[1750776858561,0.82255,2430.3,2430.2,0.82252]
[1750776858957,7.9235,2430.4,2430.3,0.8225]
[1750776859156,7.101,2430.4,2429.9,5.26439]
[1750776859363,7.9235,2430.4,2430.3,0.8225]
[1750776859663,0.82253,2430.3,2430.2,0.82251]
[1750776859864,7.9235,2430.4,2430.3,0.8225]
[1750776860455,0.82252,2430.3,2430.2,0.82251]
[1750776860662,7.101,2430.4,2430.3,0.8225]
[1750776860867,7.92347,2430.4,2430.3,0.8225]
[1750776861069,7.101,2430.4,2430.3,0.8225]
[1750776861258,0.82243,2430.6,2430.5,0.82241]
[1750776861669,7.92241,2430.7,2430.6,0.8224]
[1750776861860,7.1,2430.7,2430.6,0.8224]
[1750776863569,7.92237,2430.7,2430.6,0.8224]
[1750776863767,7.1,2430.7,2430.6,0.8224]
[1750776864071,7.92237,2430.7,2430.6,0.8224]
[1750776864464,3.9082,2430.9,2430.8,0.82233]
[1750776864769,0.82237,2430.8,2430.7,0.82234]
[1750776866564,3.9082,2430.9,2430.6,0.82237]
[1750776866565,0.8224,2430.7,2430.6,0.82237]
[1750776866969,0.82244,2430.6,2430.5,0.8224]
[1750776867471,0.82239,2430.7,2430.6,0.82237]
[1750776867668,0.82236,2430.8,2430.7,0.82233]
[1750776868364,6.51217401,2430.9,2430.5,3.41887]
[1750776868365,1.52273,2430.9,2430.8,0.82233]
[1750776868670,0.82238,2430.8,2430.7,0.82234]
[1750776872673,1.52272,2430.9,2430.8,0.82233]
[1750776873066,0.82232,2430.9,2430.8,0.82233]
[1750776873966,0.82239,2430.7,2430.6,0.82234]
[1750776875469,1.52277,2430.8,2430.7,0.82237]
[1750776875669,0.82237,2430.8,2430.7,0.82237]
[1750776875868,3.2078,2430.9,2430.8,0.82233]
[1750776876064,4.0301,2430.9,2430.8,0.82233]
[1750776876966,3.2078,2430.9,2430.8,0.82233]
[1750776877161,3.2078,2431.2,2431.1,0.82223]
[1750776877463,5.41258,2431.6,2431.5,0.8221]
[1750776877863,4.5905,2431.6,2431.5,0.8221]
[1750776878072,7.089,2431.7,2431.6,0.82206]
[1750776878668,7.91103,2431.7,2431.6,0.82206]
[1750776879573,1.54262,2431.8,2431.7,0.82203]
[1750776881775,3.8699,2431.9,2431.8,0.822]
[1750776881965,11.77986,2431.9,2431.8,0.822]
[1750776882866,7.7501,2431.9,2431.8,0.822]
[1750776883074,7.8021,2432.3,2431.7,1.3347]
[1750776883372,0.82193,2432.1,2432.0,0.82188]
[1750776884769,0.7151,2432.3,2432.2,0.82186]
[1750776885366,7.087,2432.4,2432.3,0.82183]
[1750776886072,0.6943,2432.5,2432.4,0.82179]
[1750776886372,47.378,2433.0,2432.3,2.05455]
[1750776886676,7.90765,2432.9,2432.8,0.82164]
[1750776886873,0.82166,2432.8,2432.7,0.82168]
[1750776887081,7.086,2432.9,2432.8,0.82166]
[1750776887391,0.8216,2433.0,2432.8,0.82166]
[1750776887392,2.17197,2433.1,2433.0,0.82159]
[1750776887769,1.3504,2433.1,2433.0,0.82159]
[1750776888071,2.17196,2433.1,2433.0,0.82159]
[1750776888477,0.82163,2432.9,2432.8,4.02943]
[1750776888775,0.82161,2433.0,2432.9,0.82162]
[1750776888964,34.02154,2433.2,2433.1,0.82156]
[1750776889471,33.193,2433.3,2432.9,1.3463]
[1750776889666,0.82159,2433.0,2432.9,2.16789]
[1750776889864,0.82157,2433.1,2433.0,0.82156]
[1750776890379,0.82159,2433.0,2432.9,2.1679]
[1750776890973,0.82159,2433.0,2432.6,2.71861]
[1750776890974,3.2078,2433.0,2432.6,0.6643]
[1750776891280,0.82165,2432.9,2432.8,0.82163]
[1750776891476,3.2078,2433.0,2432.6,0.6643]
[1750776891477,5.2618,2433.0,2432.6,0.6643]
[1750776891677,0.82179,2432.5,2432.4,0.82178]
[1750776891889,0.82175,2432.6,2432.5,0.82173]
[1750776892176,0.82169,2432.8,2432.7,0.82167]
[1750776893184,0.82173,2432.7,2432.6,0.82171]
[1750776893390,0.82168,2432.8,2432.7,0.82166]
[1750776894483,34.5944,2432.9,2432.4,3.2078]
[1750776894484,0.82176,2432.5,2432.4,3.2078]
[1750776894679,0.8218,2432.5,2432.4,0.82177]
[1750776894983,0.82185,2432.3,2432.2,0.82182]
[1750776895180,0.82182,2432.4,2432.3,0.82179]
[1750776897392,0.82186,2432.3,2432.2,0.82183]
[1750776897783,5.26204,2432.7,2432.1,3.2078]
[1750776897982,0.82179,2432.5,2432.4,0.82175]
[1750776898382,0.82176,2432.6,2432.5,0.82173]
[1750776898584,0.8218,2432.5,2432.4,0.82177]
[1750776898887,0.82182,2432.4,2432.3,0.8218]
[1750776899090,6.67805,2432.7,2432.2,0.82183]
[1750776899091,0.82185,2432.3,2432.2,0.82183]
[1750776899288,0.82186,2432.2,2432.1,4.02966]
[1750776899521,0.82194,2432.1,2432.0,0.82191]
[1750776899792,3.889,2432.1,2431.6,2.05512]
[1750776899988,0.82198,2432.0,2431.9,0.82194]
[1750776900383,10.972,2432.1,2432.0,0.82193]
[1750776900584,11.7939,2432.1,2432.0,0.82193]
[1750776901092,10.972,2432.1,2432.0,0.82193]
[1750776901284,3.2078,2432.1,2432.0,0.82193]
[1750776901886,4.0297,2432.1,2432.0,0.82193]
[1750776902189,0.82198,2432.0,2431.9,0.82194]
[1750776902581,3.2078,2432.1,2432.0,0.82193]
[1750776903389,0.822,2431.8,2431.7,3.2078]
[1750776903691,0.82206,2431.7,2431.6,0.82203]
[1750776903986,1.51556,2431.7,2431.6,0.82203]
[1750776904182,0.6935,2431.7,2431.6,0.82203]
[1750776904793,1.51553,2431.7,2431.6,0.82203]
[1750776905794,0.6935,2431.7,2431.3,3.2078]
[1750776906091,0.82209,2431.6,2431.5,0.82207]
[1750776906691,0.82213,2431.5,2431.4,0.82211]
[1750776908288,6.50527401,2431.7,2431.1,2.05558]
[1750776908592,0.82212,2431.5,2431.4,0.82209]
[1750776909190,2.05517,2431.6,2431.0,3.2078]
[1750776909386,0.82219,2431.3,2431.2,0.82216]
[1750776909591,3.2078,2431.5,2431.0,5.26347]
[1750776909783,4.02992,2431.5,2431.4,0.82213]
[1750776909988,3.2078,2431.5,2431.4,0.82213]
[1750776910188,1.51555,2431.7,2431.6,0.82206]
[1750776910395,7.7625,2431.7,2431.6,0.82206]
[1750776910886,8.58453,2431.7,2431.6,0.82206]
[1750776911095,3.2078,2431.8,2431.7,0.82203]
[1750776911389,7.7504,2431.9,2431.8,0.822]
[1750776911990,7.069,2431.9,2431.8,0.822]
[1750776912983,0.822,2431.8,2431.7,2.17591]
[1750776913182,0.82203,2431.7,2431.6,4.02984]
[1750776913396,0.82202,2431.8,2431.7,0.822]
[1750776915191,0.82203,2431.7,2431.6,3.2078]
[1750776915695,0.82203,2431.7,2431.6,4.02986]
[1750776915895,1.47662,2431.8,2431.7,0.82203]
[1750776917498,0.82203,2431.7,2431.6,4.02985]
[1750776917695,0.82203,2431.7,2431.6,3.2078]
[1750776917897,0.82203,2431.7,2431.6,4.02986]
[1750776918301,0.82206,2431.6,2431.5,0.82207]
[1750776919086,0.82205,2431.7,2431.6,0.82203]
[1750776920297,0.6546,2431.8,2431.7,0.82203]
[1750776920507,0.82196,2432.0,2431.9,0.82193]
[1750776920696,7.069,2432.0,2431.9,0.82193]
[1750776920994,4.02972,2432.1,2432.0,0.82193]
[1750776921195,4.0297,2432.1,2432.0,0.82193]
[1750776921395,3.2078,2432.5,2432.3,0.82179]
[1750776921594,0.82182,2432.4,2432.3,0.82179]
[1750776921794,3.2078,2432.5,2432.4,0.82179]
[1750776921994,4.02956,2432.5,2432.4,0.82179]
[1750776922201,3.2078,2432.5,2432.4,0.82179]
[1750776922602,3.2078,2432.5,2432.4,2.26339]
[1750776922897,5.26223,2432.5,2432.1,0.82186]
[1750776923198,0.82188,2432.2,2432.1,0.82186]
[1750776923994,0.82192,2432.1,2432.0,0.8219]
[1750776924302,0.82188,2432.2,2432.1,0.82186]
[1750776924600,0.82193,2432.1,2432.0,0.82191]
[1750776925601,0.82188,2432.2,2432.1,0.82186]
[1750776927302,0.82193,2432.1,2432.0,0.8219]
[1750776928499,0.82188,2432.2,2432.1,0.82186]
[1750776930607,0.82193,2432.1,2432.0,0.8219]
[1750776931306,0.82188,2432.2,2432.1,0.82186]
[1750776932203,0.82193,2432.0,2431.9,3.26828578]
[1750776932414,2.0548,2432.1,2431.7,5.65415578]
[1750776932601,0.822,2431.8,2431.7,4.0298]
[1750776933110,0.82206,2431.7,2431.5,3.10815578]
[1750776933305,0.82206,2431.7,2431.6,0.82205]
[1750776934508,9.8188,2431.9,2431.5,3.10815578]
[1750776934509,0.82206,2431.6,2431.5,2.44635578]
[1750776934708,0.8221,2431.5,2431.4,2.12681]
[1750776934901,0.82213,2431.4,2431.3,3.26849578]
[1750776935204,0.82212,2431.5,2431.4,0.8221]
[1750776935405,0.82208,2431.6,2431.5,0.82206]
[1750776936307,0.8221,2431.5,2431.4,2.12681]
[1750776937008,0.82213,2431.4,2431.3,2.44635578]
[1750776937204,0.82213,2431.4,2431.3,0.82217]
[1750776937604,0.82217,2431.3,2431.2,3.26852578]
[1750776938007,0.82217,2431.3,2431.2,4.64102578]
[1750776938716,0.8222,2431.2,2431.1,2.44635578]
[1750776939007,0.8222,2431.2,2430.9,3.26865578]
[1750776939008,0.82227,2431.0,2430.9,3.26865578]
[1750776939208,0.82227,2431.0,2430.9,0.8223]
[1750776939409,0.82225,2431.1,2431.0,0.82223]
[1750776939612,1.52903,2431.2,2431.1,0.82223]
[1750776939804,0.82223,2431.2,2431.1,0.82223]
[1750776946315,0.82218,2431.3,2431.2,0.82214]
[1750776946508,0.82216,2431.4,2431.3,0.82213]
[1750776946709,2.72389,2431.6,2431.1,2.71683]
[1750776946710,0.6687,2431.6,2431.4,0.82213]
[1750776947018,0.82211,2431.6,2431.5,0.82207]
[1750776948106,5.97062,2431.8,2431.6,0.82203]
[1750776948107,0.82205,2431.7,2431.6,0.82203]
[1750776948811,0.82206,2431.6,2431.5,2.21567]
[1750776950006,0.82205,2431.7,2431.6,0.82203]
[1750776950404,10.2598,2432.5,2431.6,8.2078]
[1750776950710,0.82183,2432.4,2432.3,0.82181]
[1750776951017,0.82184,2432.3,2432.2,0.82183]
[1750776951623,0.82182,2432.4,2432.3,0.8218]
[1750776951915,0.82186,2432.3,2432.2,0.82184]
[1750776952111,0.82182,2432.4,2432.3,0.82179]
[1750776952719,0.82186,2432.3,2432.2,0.82183]
[1750776953021,0.82182,2432.4,2432.3,0.8218]
[1750776953624,0.8219,2432.1,2432.0,2.1839]
[1750776953816,0.82195,2432.0,2431.9,0.82193]
[1750776954015,0.82198,2431.9,2431.8,0.82196]
[1750776954522,0.822,2431.8,2431.7,0.822]
[1750776954722,0.82203,2431.7,2431.6,4.02983]
[1750776954932,1.52823,2431.7,2431.6,3.2078]
[1750776955422,0.8221,2431.5,2431.4,0.82211]
[1750776955623,8.57306401,2431.7,2431.3,3.2078]
[1750776955624,0.82213,2431.4,2431.3,4.02994]
[1750776956618,0.82217,2431.3,2431.2,0.82217]
[1750776957725,0.82214,2431.5,2431.4,0.82211]
[1750776959520,8.3941,2431.6,2431.2,2.44635578]
[1750776959726,0.82217,2431.4,2431.3,0.82215]
[1750776960329,0.8222,2431.2,2431.1,2.44635578]
[1750776960625,7.051,2431.2,2431.1,0.82223]
[1750776962436,0.82211,2431.6,2431.5,0.82207]
[1750776962813,0.8221,2431.5,2431.3,3.2078]
[1750776963018,0.8221,2431.5,2431.2,2.44635578]
[1750776963019,2.05521,2431.6,2431.1,3.13855578]
[1750776963220,0.82215,2431.4,2431.3,0.82212]
[1750776963524,1.4207,2431.6,2431.1,3.13855578]
[1750776963525,0.8222,2431.3,2431.1,3.13855578]
[1750776963721,0.8222,2431.3,2431.2,0.82216]
[1750776963918,0.82215,2431.4,2431.3,0.82212]
[1750776964124,0.82212,2431.5,2431.4,0.8221]
[1750776965221,0.82217,2431.4,2431.3,0.82214]
[1750776965529,0.82213,2431.5,2431.4,0.8221]
[1750776966126,4.17123,2431.7,2431.1,4.17548]
[1750776966127,0.82217,2431.4,2431.3,0.82214]
[1750776968024,2.05529,2431.5,2431.1,2.44635578]
[1750776968223,0.82223,2431.2,2431.1,0.82223]
[1750776968625,0.82223,2431.1,2431.0,3.2078]
[1750776968933,0.82222,2431.2,2431.1,0.8222]
[1750776969128,1.3642,2431.4,2431.0,6.67997]
[1750776969430,0.82221,2431.3,2431.2,0.82217]
[1750776970124,0.82223,2431.2,2431.1,0.8222]
[1750776972131,0.82219,2431.3,2431.2,0.82217]
[1750776972531,9.21535,2431.4,2431.3,0.82216]
[1750776972923,2.18635,2431.4,2431.3,0.82216]
[1750776973830,0.8222,2431.3,2431.2,0.82217]
[1750776974927,0.8222,2431.3,2431.0,6.47639578]
[1750776974928,0.82223,2431.1,2431.0,6.47639578]
[1750776975137,0.82222,2431.2,2431.1,0.82219]
[1750776975431,7.85117,2431.4,2431.3,0.82216]
[1750776975825,0.8222,2431.3,2431.2,0.82218]
[1750776976431,0.8222,2431.2,2431.1,0.82221]
[1750776979832,0.82223,2431.1,2431.0,4.03004]
[1750776980135,0.82222,2431.2,2431.1,0.8222]
[1750776980326,0.82222,2431.2,2431.1,2.2573]
[1750776981034,0.82218,2431.3,2431.2,0.8222]
[1750776983234,0.82218,2431.3,2431.2,3.26855578]
[1750776983938,7.85115,2431.4,2431.3,0.82216]
[1750776984131,0.82216,2431.3,2431.2,2.44635578]
[1750776984331,0.82216,2431.3,2431.2,3.26855578]
[1750776984634,0.82216,2431.3,2431.2,0.8222]
[1750776985229,0.82223,2431.1,2431.0,4.03004]
[1750776985428,0.7188,2431.2,2431.1,0.82223]
[1750776985634,0.82219,2431.3,2431.2,0.8222]
[1750776985834,0.82219,2431.3,2431.2,3.27641412]
[1750776987331,0.82216,2431.3,2431.2,3.27638412]
[1750776987836,0.82216,2431.3,2431.2,2.45421412]
[1750776988038,0.8222,2431.2,2431.1,3.27643412]
[1750776988244,0.8222,2431.2,2431.1,2.45421412]
[1750776988540,0.8222,2431.2,2431.1,3.27644412]
[1750776988740,0.8222,2431.2,2431.1,2.45421412]
[1750776988935,0.82223,2431.1,2431.0,2.45421412]
[1750776989625,1.4073,2431.2,2430.9,2.45421412]
[1750776989626,0.82227,2431.0,2430.9,2.45421412]
[1750776989830,8.52407,2431.0,2430.9,0.8223]
[1750776990029,0.82225,2431.1,2431.0,0.82227]
[1750776990234,7.85125,2431.1,2431.0,3.27648412]
[1750776990626,0.82227,2431.0,2430.9,2.45421412]
[1750776990831,0.8223,2430.9,2430.8,3.27652412]
[1750776991026,1.4951,2430.9,2430.8,3.27652412]
[1750776991235,1.4951,2430.9,2430.8,2.45421412]
[1750776991433,1.4951,2430.9,2430.7,5.66201412]
[1750776991434,0.82233,2430.8,2430.7,5.66201412]
[1750776991738,1.50583,2430.8,2430.7,6.48438412]
[1750776992242,1.50584,2430.8,2430.7,6.48438412]
[1750776993743,1.50584,2430.8,2430.7,2.45421412]
[1750776994044,0.82237,2430.7,2430.6,3.27661412]
[1750776995450,0.82237,2430.7,2430.6,0.8224]
[1750776996346,7.83037,2430.7,2430.6,0.8224]
[1750776996740,5.26329,2431.3,2430.6,7.45421412]
[1750776996942,11.03799,2431.3,2430.9,2.05571]
[1750776997144,7.008,2431.3,2431.2,0.8222]
[1750776997847,2.15699,2431.6,2431.2,4.06352]
[1750776998146,7.83002,2431.8,2431.7,0.822]
[1750776998551,7.008,2431.8,2431.7,0.822]
[1750776998951,4.02977,2431.9,2431.8,0.822]
[1750776999349,0.82203,2431.8,2431.7,0.82201]
[1750777000446,3.2078,2431.9,2431.8,0.822]
[1750777000646,4.02976,2431.9,2431.8,0.822]
[1750777001655,0.82203,2431.8,2431.7,0.82201]
[1750777002149,0.82207,2431.7,2431.6,0.82206]
[1750777002549,0.82207,2431.7,2431.6,2.13166]
[1750777002855,0.82206,2431.6,2431.5,3.27629412]
[1750777003855,0.82206,2431.6,2431.5,0.82208]
[1750777004049,7.86681401,2431.8,2431.3,2.45421412]
[1750777004354,0.82213,2431.5,2431.4,0.8221]
[1750777005246,0.8221,2431.6,2431.5,0.82208]
[1750777005448,0.82206,2431.7,2431.6,0.82204]
[1750777009262,0.82211,2431.6,2431.5,0.82208]
[1750777010363,0.82213,2431.5,2431.4,0.82211]
[1750777011160,1.52973,2431.5,2431.4,0.82211]
[1750777014067,1.52973,2431.5,2431.2,4.50972412]
[1750777014068,0.82217,2431.3,2431.2,3.27637412]
[1750777014267,0.82217,2431.3,2431.2,0.82216]
[1750777015482,0.8222,2431.2,2431.1,3.27642412]
[1750777016076,0.8222,2431.2,2431.1,0.82221]
[1750777018281,2.05539,2431.4,2431.0,4.03005]
[1750777018282,0.82223,2431.1,2431.0,4.03005]
[1750777019879,0.82223,2431.1,2431.0,0.82225]
[1750777020775,0.8223,2430.9,2430.8,3.27652412]
[1750777020977,0.82234,2430.8,2430.7,0.82235]
[1750777021180,0.82234,2430.9,2430.8,0.82231]
[1750777021378,7.82934,2430.9,2430.8,0.82231]
[1750777021579,0.82237,2430.8,2430.7,0.82234]
[1750777021885,7.82937,2430.8,2430.7,0.82234]
[1750777022578,7.82937,2430.8,2430.5,3.39092]
[1750777022579,0.8224,2430.6,2430.5,4.61154412]
[1750777022885,0.8224,2430.6,2430.5,2.45421412]
[1750777023072,3.06920733,2430.7,2430.4,3.2078]
[1750777023073,0.82244,2430.5,2430.4,3.2078]
[1750777023278,0.82244,2430.5,2430.1,3.2078]
[1750777023279,0.82254,2430.2,2430.1,3.2078]
[1750777023482,0.82254,2430.2,2429.9,2.45421412]
[1750777023483,10.07620733,2430.2,2429.7,5.66201412]
[1750777023685,0.82267,2429.8,2429.7,6.48467412]
[1750777024094,0.82267,2429.8,2429.7,3.2078]
[1750777024378,0.82269,2429.8,2429.7,0.82268]
[1750777024583,0.82272,2429.7,2429.6,0.82272]
[1750777025379,0.82276,2429.6,2429.5,0.82275]
[1750777025685,0.7029,2430.0,2429.5,0.82276]
[1750777025686,9.06371,2429.8,2429.5,0.82276]
[1750777025978,0.82266,2429.9,2429.4,5.1627]
[1750777026169,3.9107,2430.0,2429.7,0.82269]
[1750777026170,0.8227,2429.8,2429.7,0.82269]
[1750777026373,0.82278,2429.5,2429.4,3.2078]
[1750777026569,7.86722751,2429.9,2429.4,3.2078]
[1750777026570,5.81061751,2429.9,2429.4,3.2078]
[1750777026771,12.97423,2430.0,2429.5,0.82275]
[1750777026772,3.9107,2430.0,2429.5,0.82275]
[1750777026982,0.82274,2429.6,2429.5,2.15805]
[1750777027180,0.7029,2430.0,2429.5,1.3353]
[1750777027378,1.52552,2430.0,2429.9,0.82264]
[1750777027581,3.2078,2430.1,2430.0,0.82261]
[1750777028084,6.987,2430.4,2430.0,3.2078]
[1750777028290,0.82254,2430.2,2430.1,2.22195]
[1750777028476,0.82252,2430.3,2430.2,0.8225]
[1750777028782,0.82254,2430.2,2430.1,1.3994]
[1750777028976,0.82257,2430.1,2430.0,4.03039]
[1750777029576,0.82257,2430.2,2430.1,0.82256]
[1750777029778,0.82257,2430.1,2430.0,3.2078]
[1750777029977,0.82257,2430.1,2429.8,2.7327]
[1750777029978,0.82264,2429.9,2429.8,3.55533]
[1750777030682,0.82263,2430.0,2429.9,0.82261]
[1750777032283,0.82263,2430.0,2429.9,2.18281]
[1750777033184,0.82264,2429.9,2429.8,2.15595]
[1750777033384,0.82264,2429.9,2429.8,0.82265]
[1750777033585,0.82267,2429.8,2429.7,3.2078]
[1750777034080,0.82269,2429.8,2429.7,0.82267]
[1750777034288,0.82274,2429.6,2429.5,2.26795]
[1750777034478,6.988,2429.8,2429.5,1.4452]
[1750777034479,7.81072,2429.8,2429.5,1.4452]
[1750777034679,7.81072,2429.8,2429.6,0.82272]
[1750777034680,0.82274,2429.7,2429.6,0.82272]
[1750777035076,6.988,2429.8,2429.5,1.4452]
[1750777035077,7.8107,2429.8,2429.7,0.82271]
[1750777035489,0.82274,2429.7,2429.6,0.82272]
[1750777035683,7.81069,2429.8,2429.7,0.82271]
[1750777035892,0.82266,2429.9,2429.8,0.82263]
[1750777036185,0.82264,2429.9,2429.8,0.82263]
[1750777036880,0.82267,2429.8,2429.7,2.26788]
[1750777037088,0.82267,2429.9,2429.8,0.82264]
[1750777037390,9.04454,2430.0,2429.4,4.5865]
[1750777037688,0.82274,2429.7,2429.6,0.82271]
[1750777039387,2.05677,2429.8,2429.4,4.5865]
[1750777039589,0.82278,2429.5,2429.4,4.72859]
[1750777039791,0.82277,2429.6,2429.5,0.82273]
[1750777040287,0.82278,2429.5,2429.4,4.0306]
[1750777040484,0.82278,2429.5,2429.4,3.2078]
[1750777040691,0.82291,2429.1,2429.0,3.2078]
[1750777041192,0.82291,2429.1,2429.0,4.03074]
[1750777041490,0.82291,2429.1,2429.0,0.82294]
[1750777042584,7.6417,2429.2,2429.0,0.82294]
[1750777042790,8.46458,2429.2,2429.1,0.82291]
[1750777043490,6.989,2429.2,2429.1,0.82291]
[1750777043789,0.82287,2429.3,2429.2,0.82288]
[1750777043989,7.81187,2429.3,2429.2,0.82288]
[1750777045498,7.81287,2429.3,2429.2,0.82288]
[1750777045888,5.2241,2429.5,2429.4,0.82281]
[1750777046091,4.70698,2429.5,2429.4,0.82281]
[1750777046792,0.6876,2429.6,2429.5,0.82278]
[1750777046996,7.81272,2429.7,2429.6,0.82271]
[1750777047196,0.82272,2429.7,2429.6,0.82271]
[1750777047593,55.0687,2429.8,2429.5,0.82275]
[1750777047594,0.82278,2429.6,2429.5,0.82275]
[1750777048686,0.82281,2429.5,2429.4,0.82278]
[1750777048886,0.82277,2429.6,2429.5,0.82273]
[1750777049895,0.82286,2429.3,2429.2,0.82286]
[1750777050594,0.82289,2429.2,2429.1,0.82289]
[1750777050785,0.82287,2429.3,2429.2,0.82286]
[1750777050988,12.12108333,2429.4,2429.0,4.51117636]
[1750777051298,12.12108333,2429.4,2429.1,0.82288]
[1750777051299,0.8229,2429.2,2429.1,0.82288]
[1750777051688,0.82294,2429.1,2429.0,0.82292]
[1750777051988,0.82294,2429.1,2428.9,2.45397636]
[1750777051989,0.82294,2429.0,2428.9,3.27694636]
[1750777052495,0.82294,2429.0,2428.9,2.45397636]
[1750777052694,0.82294,2429.0,2428.9,3.27695636]
[1750777052893,0.82293,2429.1,2429.0,0.82291]
[1750777053397,0.82294,2429.0,2428.9,3.27693636]
[1750777055594,0.82294,2429.0,2428.9,3.28179175]
[1750777055994,0.82292,2429.1,2429.0,0.82291]
[1750777057002,0.677,2429.2,2428.9,3.87163175]
[1750777057003,0.82298,2429.0,2428.9,0.82295]
[1750777057885,0.82298,2428.9,2428.8,6.48961175]
[1750777058291,0.82298,2428.9,2428.8,4.03078]
[1750777058591,0.82298,2428.9,2428.8,6.48961175]
[1750777058896,0.82298,2428.9,2428.8,3.2078]
[1750777059093,0.82298,2428.9,2428.8,6.48964175]
[1750777061789,6.971,2429.0,2428.8,6.48964175]
[1750777061996,7.79396,2429.0,2428.9,0.82298]
[1750777062191,7.79396,2429.0,2428.9,2.17798]
[1750777062701,7.79396,2429.0,2428.9,0.82298]
[1750777063386,6.971,2429.0,2428.9,3.28261907]
[1750777063590,7.79394,2429.0,2428.9,4.63761907]
[1750777063790,0.82294,2429.0,2428.9,4.63761907]
[1750777063993,0.82289,2429.2,2429.1,0.82291]
[1750777065195,0.82289,2429.2,2429.1,2.82321]
[1750777065794,0.82291,2429.1,2429.0,2.45963907]
[1750777065994,9.68546,2429.3,2428.9,3.28258907]
[1750777065995,0.82294,2429.0,2428.9,3.28258907]
[1750777067102,0.82293,2429.1,2429.0,0.82288]
[1750777067302,0.82293,2429.1,2429.0,3.28251907]
[1750777067504,0.82293,2429.1,2429.0,4.60141907]
[1750777068403,0.8229,2429.2,2429.1,0.82287]
[1750777068600,0.8229,2429.2,2429.1,6.49439274]
[1750777070104,0.8229,2429.2,2429.1,5.67152274]
[1750777071304,0.8229,2429.2,2429.1,6.49443274]
[1750777071607,0.8229,2429.2,2429.1,5.67152274]
[1750777071803,0.8229,2429.2,2429.1,6.49443274]
[1750777072004,0.8229,2429.2,2429.1,5.67152274]
[1750777072408,0.8229,2429.2,2429.1,6.49443274]
[1750777074010,0.8229,2429.2,2429.1,5.67152274]
[1750777074307,0.8229,2429.2,2429.1,6.49443274]
[1750777074911,0.8229,2429.2,2429.1,5.67152274]
[1750777075103,0.8229,2429.2,2429.1,2.46372274]
[1750777075708,0.8229,2429.2,2429.1,3.28663274]
[1750777076206,0.8229,2429.2,2429.1,2.46372274]
[1750777076404,3.89694333,2429.2,2429.1,2.46372274]
[1750777077012,0.82291,2429.1,2429.0,2.46372274]
[1750777077205,0.82291,2429.1,2429.0,3.28666274]
[1750777077398,0.82291,2429.1,2429.0,0.82294]
[1750777078006,0.82298,2429.0,2428.9,0.82295]
[1750777079712,0.82298,2428.9,2428.8,7.99170876]
[1750777079904,0.82298,2429.0,2428.9,0.82293]
[1750777080304,0.82298,2429.0,2428.9,4.10244876]
[1750777080916,0.82298,2429.0,2428.9,0.82293]
[1750777081307,0.82298,2429.0,2428.8,7.16871876]
[1750777081308,0.82298,2428.9,2428.8,3.27951876]
[1750777081508,0.82304,2428.7,2428.6,3.27951876]
[1750777081812,3.89708333,2428.7,2428.6,0.82308]
[1750777082514,0.82308,2428.6,2428.5,7.31040876]
[1750777083117,0.82306,2428.7,2428.6,0.82308]
[1750777083612,2.23788,2428.9,2428.8,0.82301]
[1750777083917,9.20888,2428.9,2428.8,3.2893174]
[1750777084615,12.28292333,2428.9,2428.8,3.2893174]
[1750777084816,12.28292333,2428.9,2428.8,2.4663074]
[1750777085511,0.82301,2428.8,2428.7,3.2893374]
[1750777086014,0.82301,2428.8,2428.7,0.82303]
[1750777086218,0.82301,2428.8,2428.7,3.28887794]
[1750777087216,11.45994333,2428.9,2428.8,0.82301]
[1750777087217,9.20889,2428.9,2428.8,0.82301]
[1750777087422,7.6567,2428.9,2428.8,3.28833796]
[1750777087618,8.47968,2428.9,2428.8,3.28833796]
[1750777087813,4.60672333,2428.9,2428.8,2.46532796]
[1750777088118,11.55372333,2428.9,2428.8,2.46532796]
[1750777088415,0.82301,2428.8,2428.7,3.28836796]
[1750777089319,0.82301,2428.8,2428.7,0.82304]
[1750777089518,8.4797,2428.9,2428.8,0.82301]
[1750777089721,8.4797,2428.9,2428.8,3.28776711]
[1750777090522,8.4797,2428.9,2428.8,2.46475711]
[1750777090523,11.55374333,2428.9,2428.8,2.46475711]
[1750777090827,0.82301,2428.8,2428.7,2.46475711]
[1750777091120,0.82301,2428.8,2428.7,1e-08]
[1750777091314,0.82301,2428.8,2428.4,3.27951876]
[1750777091315,0.82311,2428.5,2428.4,1e-08]
[1750777091514,0.82318,2428.3,2428.2,3.2078]
[1750777092309,0.82318,2428.3,2427.9,3.27951876]